fUSD/lending_fUSD_20260515
["ID","MTS","AMOUNT","RATE_DAILY","PERIOD"]
[422270360,1778776249000,-150.0,0.00028262,7]
[422270362,1778776249000,-150.0,0.00028271,7]
[422270361,1778776249000,-1558.1,0.00028267,2]
[422270365,1778776249000,-1000.0,0.00028312,7]
[422270363,1778776249000,-150.0,0.00028309,7]
[422270366,1778776249000,-150.0,0.00028317,7]
[422270364,1778776249000,-2021.1238021,0.00028311,30]
[422270359,1778776249000,-150.0,0.00028262,7]
[422270345,1778776249000,-150.0,0.00028181,7]
[422270322,1778776249000,-150.0,0.00028008,7]
[422270344,1778776249000,-150.0,0.00028158,7]
[422270323,1778776249000,-150.0,0.0002802,7]
[422270327,1778776249000,-150.65404894,0.00028054,45]
[422270324,1778776249000,-150.0,0.0002802,7]
[422270326,1778776249000,-150.0,0.00028045,7]
[422270328,1778776249000,-150.0,0.0002808,7]
[422270341,1778776249000,-150.0,0.0002812,7]
[422270325,1778776249000,-150.0,0.0002802,7]
[422270330,1778776249000,-150.0,0.00028094,7]
[422270331,1778776249000,-2000.0,0.00028109,2]
[422270334,1778776249000,-650.0,0.00028109,2]
[422270329,1778776249000,-150.0,0.00028083,7]
[422270332,1778776249000,-2000.0,0.00028109,2]
[422270337,1778776249000,-650.0,0.00028109,2]
[422270338,1778776249000,-650.0,0.00028109,2]
[422270336,1778776249000,-650.0,0.00028109,2]
[422270335,1778776249000,-650.0,0.00028109,2]
[422270339,1778776249000,-650.0,0.00028109,2]
[422270340,1778776249000,-167.0,0.00028109,2]
[422270342,1778776249000,-150.0,0.00028141,7]
[422270343,1778776249000,-150.0,0.00028158,7]
[422270333,1778776249000,-2000.0,0.00028109,2]
[422270399,1778776250000,-2000.0,0.00028726,2]
[422270394,1778776250000,-150.0,0.00028664,7]
[422270397,1778776250000,-2000.0,0.00028726,2]
[422270391,1778776250000,-150.0,0.00028648,7]
[422270395,1778776250000,-150.0,0.00028685,7]
[422270393,1778776250000,-150.0,0.00028664,7]
[422270392,1778776250000,-150.0,0.00028652,7]
[422270396,1778776250000,-150.0,0.00028723,7]
[422270398,1778776250000,-2000.0,0.00028726,2]
[422270411,1778776250000,-2037.22,0.000288,14]
[422270403,1778776250000,-2000.0,0.00028726,2]
[422270402,1778776250000,-2000.0,0.00028726,2]
[422270401,1778776250000,-2000.0,0.00028726,2]
[422270404,1778776250000,-2000.0,0.00028726,2]
[422270405,1778776250000,-2000.0,0.00028726,2]
[422270408,1778776250000,-150.0,0.0002876,7]
[422270409,1778776250000,-150.0,0.00028763,7]
[422270406,1778776250000,-2000.0,0.00028726,2]
[422270407,1778776250000,-150.0,0.00028745,7]
[422270390,1778776250000,-22171.51971509,0.00028625,2]
[422270400,1778776250000,-2000.0,0.00028726,2]
[422270388,1778776250000,-150.0,0.00028624,7]
[422270384,1778776250000,-150.0,0.0002854,7]
[422270389,1778776250000,-150.0,0.00028624,7]
[422270414,1778776250000,-150.0,0.00028805,7]
[422270367,1778776250000,-512.0,0.00028329,6]
[422270368,1778776250000,-150.0,0.00028342,7]
[422270376,1778776250000,-150.0,0.00028429,7]
[422270371,1778776250000,-150.0,0.00028382,7]
[422270369,1778776250000,-150.0,0.00028342,7]
[422270375,1778776250000,-150.0,0.00028422,7]
[422270372,1778776250000,-150.0,0.00028384,7]
[422270373,1778776250000,-1485.93,0.000284,7]
[422270387,1778776250000,-150.0,0.0002861,7]
[422270370,1778776250000,-150.0,0.00028346,7]
[422270377,1778776250000,-150.0,0.00028443,7]
[422270378,1778776250000,-150.0,0.00028459,7]
[422270379,1778776250000,-156.58,0.00028493,2]
[422270381,1778776250000,-150.0,0.00028503,7]
[422270382,1778776250000,-150.0,0.00028503,7]
[422270380,1778776250000,-150.0,0.00028497,7]
[422270383,1778776250000,-150.0,0.00028535,7]
[422270385,1778776250000,-150.0,0.00028572,7]
[422270386,1778776250000,-150.0,0.00028572,7]
[422270374,1778776250000,-26773.0,0.00028415,2]
[422270419,1778776250000,-150.0,0.00028875,7]
[422270410,1778776250000,-150.0,0.00028798,7]
[422270412,1778776250000,-3483.58,0.000288,2]
[422270442,1778776250000,-2149.0,0.00029445,2]
[422270441,1778776250000,-1001.9,0.00029443,2]
[422270447,1778776250000,-150.0,0.00029601,2]
[422270443,1778776250000,-512.0,0.00029452,7]
[422270444,1778776250000,-1001.9,0.00029471,2]
[422270445,1778776250000,-61701.16971157,0.000295,7]
[422270446,1778776250000,-1001.9,0.000295,2]
[422270448,1778776250000,-8393.88,0.00029615,7]
[422270451,1778776250000,-512.0,0.00030014,7]
[422270450,1778776250000,-200.0,0.0003,2]
[422270452,1778776250000,-794.69,0.00030082,120]
[422270453,1778776250000,-2037.22,0.000301,14]
[422270454,1778776250000,-852.26,0.00030137,2]
[422270457,1778776250000,-1439.49482848,0.00030137,2]
[422270455,1778776250000,-200.0,0.00030137,2]
[422270458,1778776250000,-1558.1,0.00030239,2]
[422270461,1778776250000,-2492.31,0.000305,7]
[422270456,1778776250000,-2021.1238021,0.00030137,30]
[422270460,1778776250000,-150.0,0.00030477,7]
[422270415,1778776250000,-150.0,0.00028825,7]
[422270459,1778776250000,-1206.67,0.000303,7]
[422270436,1778776250000,-1001.9,0.000293,2]
[422270437,1778776250000,-1001.9,0.00029329,2]
[422270449,1778776250000,-150.0,0.00029819,2]
[422270440,1778776250000,-1001.9,0.00029414,2]
[422270417,1778776250000,-150.0,0.00028866,7]
[422270439,1778776250000,-1001.9,0.00029386,2]
[422270418,1778776250000,-150.0,0.00028873,7]
[422270416,1778776250000,-150.0,0.00028836,7]
[422270420,1778776250000,-512.0,0.0002889,6]
[422270422,1778776250000,-150.0,0.00028949,7]
[422270413,1778776250000,-1161.19,0.000288,2]
[422270426,1778776250000,-3542.0,0.00028958,2]
[422270425,1778776250000,-926.0,0.00028958,2]
[422270423,1778776250000,-1270.0,0.00028958,2]
[422270428,1778776250000,-297.16245739,0.00028986,7]
[422270424,1778776250000,-1223.0,0.00028958,2]
[422270421,1778776250000,-150.0,0.00028911,7]
[422270438,1778776250000,-1001.9,0.00029357,2]
[422270434,1778776250000,-2492.31,0.00029,7]
[422270432,1778776250000,-158.41186941,0.00028986,7]
[422270433,1778776250000,-178.0382564,0.00028986,7]
[422270435,1778776250000,-2021.1238021,0.00029224,30]
[422270430,1778776250000,-294.45862649,0.00028986,7]
[422270429,1778776250000,-150.00000001,0.00028986,7]
[422270427,1778776250000,-153.86101362,0.00028986,7]
[422270431,1778776250000,-150.0,0.00028986,7]
[422270495,1778776251000,-1000.0,0.00031152,2]
[422270489,1778776251000,-1000.0,0.0003114,2]
[422270491,1778776251000,-1000.0,0.00031152,2]
[422270494,1778776251000,-1000.0,0.00031152,2]
[422270492,1778776251000,-1000.0,0.00031152,2]
[422270493,1778776251000,-1000.0,0.00031152,2]
[422270496,1778776251000,-150.0,0.00031258,7]
[422270500,1778776251000,-1000.0,0.000315,7]
[422270498,1778776251000,-1659.0,0.00031364,3]
[422270499,1778776251000,-150.0,0.00031388,7]
[422270504,1778776251000,-155.0,0.0003157,30]
[422270512,1778776251000,-159.0,0.00031716,30]
[422270501,1778776251000,-150.0,0.00031519,7]
[422270502,1778776251000,-8393.88,0.00031537,7]
[422270503,1778776251000,-258.0,0.0003157,30]
[422270505,1778776251000,-200.0,0.00031576,30]
[422270506,1778776251000,-2698.0,0.00031576,30]
[422270508,1778776251000,-150.0,0.00031649,7]
[422270507,1778776251000,-3629.0,0.00031576,30]
[422270514,1778776251000,-1907.0,0.00031716,30]
[422270509,1778776251000,-512.0,0.00031699,9]
[422270510,1778776251000,-631.0,0.00031716,30]
[422270490,1778776251000,-1847.41533141,0.0003114,2]
[422270497,1778776251000,-163.0,0.00031358,3]
[422270488,1778776251000,-1000.0,0.0003114,2]
[422270465,1778776251000,-512.0,0.00030575,8]
[422270487,1778776251000,-512.0,0.00031137,9]
[422270511,1778776251000,-224.0,0.00031716,30]
[422270462,1778776251000,-157.0,0.00030555,3]
[422270463,1778776251000,-258.0,0.0003057,30]
[422270464,1778776251000,-155.0,0.0003057,30]
[422270467,1778776251000,-2698.0,0.00030576,30]
[422270468,1778776251000,-3629.0,0.00030576,30]
[422270466,1778776251000,-200.0,0.00030576,30]
[422270469,1778776251000,-1485.93,0.000306,7]
[422270472,1778776251000,-2469.69451039,0.000307,2]
[422270473,1778776251000,-2469.69451039,0.000307,2]
[422270470,1778776251000,-150.0,0.00030607,7]
[422270485,1778776251000,-2037.22,0.000311,14]
[422270471,1778776251000,-2469.69451041,0.000307,2]
[422270475,1778776251000,-224.0,0.00030716,30]
[422270478,1778776251000,-1907.0,0.00030716,30]
[422270477,1778776251000,-370.0,0.00030716,30]
[422270480,1778776251000,-150.0,0.00030867,7]
[422270483,1778776251000,-150.0,0.00031081,2]
[422270484,1778776251000,-200.0,0.00031096,2]
[422270476,1778776251000,-159.0,0.00030716,30]
[422270481,1778776251000,-150.0,0.00030998,7]
[422270479,1778776251000,-150.0,0.00030737,7]
[422270482,1778776251000,-2021.1238021,0.0003105,30]
[422270486,1778776251000,-150.0,0.00031128,7]
[422270474,1778776251000,-631.0,0.00030716,30]
[422270516,1778776251000,-500.0,0.00031842,2]
[422270559,1778776251000,-500.0,0.00032876,2]
[422270515,1778776251000,-150.0,0.00031779,7]
[422270542,1778776251000,-200.0,0.00032576,30]
[422270541,1778776251000,-155.0,0.0003257,30]
[422270549,1778776251000,-150.0,0.00032691,7]
[422270544,1778776251000,-3629.0,0.00032576,30]
[422270546,1778776251000,-1161.19,0.000326,2]
[422270550,1778776251000,-631.0,0.00032716,30]
[422270555,1778776251000,-294.69876843,0.00032729,6]
[422270551,1778776251000,-224.0,0.00032716,30]
[422270554,1778776251000,-1907.0,0.00032716,30]
[422270553,1778776251000,-370.0,0.00032716,30]
[422270552,1778776251000,-159.0,0.00032716,30]
[422270556,1778776251000,-22171.51971509,0.00032773,2]
[422270560,1778776251000,-506.65,0.00032877,2]
[422270558,1778776251000,-512.0,0.00032822,10]
[422270562,1778776251000,-150.01,0.00032877,115]
[422270561,1778776251000,-349.95,0.00032877,2]
[422270563,1778776251000,-852.26,0.00032877,2]
[422270564,1778776251000,-35426.35668066,0.00032877,2]
[422270565,1778776251000,-1000.0,0.00032877,30]
[422270566,1778776251000,-500.0,0.00032877,2]
[422270567,1778776251000,-500.0,0.00032877,2]
[422270568,1778776251000,-500.0,0.00032877,2]
[422270513,1778776251000,-370.0,0.00031716,30]
[422270548,1778776251000,-150.0,0.00032636,2]
[422270547,1778776251000,-1206.67,0.000326,7]
[422270557,1778776251000,-150.0,0.00032821,7]
[422270545,1778776251000,-3483.58,0.000326,2]
[422270543,1778776251000,-2698.0,0.00032576,30]
[422270517,1778776251000,-150.0,0.00031909,7]
[422270520,1778776251000,-3542.0,0.00031958,2]
[422270519,1778776251000,-926.0,0.00031958,2]
[422270524,1778776251000,-200.0,0.00032055,2]
[422270523,1778776251000,-150.0,0.0003204,7]
[422270521,1778776251000,-2021.1238021,0.00031963,30]
[422270525,1778776251000,-500.0,0.00032059,14]
[422270526,1778776251000,-500.0,0.00032059,14]
[422270522,1778776251000,-2492.31,0.00032,7]
[422270527,1778776251000,-526.86,0.00032059,14]
[422270528,1778776251000,-1000.0,0.00032062,2]
[422270518,1778776251000,-1223.0,0.00031958,2]
[422270533,1778776251000,-512.0,0.0003226,10]
[422270531,1778776251000,-150.0,0.00032204,2]
[422270540,1778776251000,-258.0,0.0003257,30]
[422270538,1778776251000,-150.0,0.00032561,7]
[422270529,1778776251000,-1584.0,0.0003207,3]
[422270535,1778776251000,-150.0,0.0003243,7]
[422270539,1778776251000,-1518.69377918,0.00032562,2]
[422270537,1778776251000,-500.0,0.00032461,24]
[422270536,1778776251000,-500.0,0.00032461,24]
[422270532,1778776251000,-1558.1,0.0003221,5]
[422270530,1778776251000,-150.0,0.0003217,7]
[422270534,1778776251000,-150.0,0.000323,7]
[422270606,1778776252000,-150.0,0.00033472,7]
[422270597,1778776252000,-2991.49051684,0.00033099,7]
[422270599,1778776252000,-150.0,0.00033342,7]
[422270594,1778776252000,-2682.57183977,0.00033099,7]
[422270596,1778776252000,-2884.75459676,0.00033099,7]
[422270602,1778776252000,-1066.0,0.00033383,2]
[422270603,1778776252000,-512.0,0.00033384,11]
[422270601,1778776252000,-1219.0,0.00033383,2]
[422270604,1778776252000,-8707.18513235,0.0003341,2]
[422270605,1778776252000,-8393.88,0.0003346,14]
[422270610,1778776252000,-151.0,0.00033571,30]
[422270614,1778776252000,-6888.0,0.00033571,30]
[422270607,1778776252000,-258.0,0.0003357,30]
[422270611,1778776252000,-500.0,0.00033571,30]
[422270609,1778776252000,-228.78924863,0.00033571,30]
[422270612,1778776252000,-500.0,0.00033571,30]
[422270616,1778776252000,-1030.0,0.00033571,30]
[422270615,1778776252000,-200.0,0.00033571,30]
[422270613,1778776252000,-10000.0,0.00033571,30]
[422270619,1778776252000,-500.0,0.00033571,30]
[422270617,1778776252000,-520.0,0.00033571,30]
[422270620,1778776252000,-518.5,0.00033571,30]
[422270598,1778776252000,-150.0,0.00033212,7]
[422270608,1778776252000,-155.0,0.0003357,30]
[422270600,1778776252000,-157.0,0.00033377,3]
[422270618,1778776252000,-151.0,0.00033571,30]
[422270590,1778776252000,-2319.72410669,0.00033099,7]
[422270570,1778776252000,-500.0,0.00032877,2]
[422270569,1778776252000,-500.0,0.00032877,2]
[422270572,1778776252000,-414.01791719,0.00032877,2]
[422270582,1778776252000,-350.0,0.00033014,5]
[422270571,1778776252000,-500.0,0.00032877,2]
[422270573,1778776252000,-2021.1238021,0.00032877,30]
[422270574,1778776252000,-1377.28,0.00032877,60]
[422270575,1778776252000,-150.0,0.00032951,7]
[422270577,1778776252000,-2492.31,0.00033,30]
[422270578,1778776252000,-151.0,0.00033,14]
[422270580,1778776252000,-214.95940296,0.00033,30]
[422270595,1778776252000,-2781.82699784,0.00033099,7]
[422270579,1778776252000,-172.0,0.00033,14]
[422270581,1778776252000,-214.95940296,0.00033,3]
[422270583,1778776252000,-150.0,0.00033082,7]
[422270585,1778776252000,-1934.38338737,0.00033099,7]
[422270586,1778776252000,-2005.9555727,0.00033099,7]
[422270588,1778776252000,-2157.14243826,0.00033099,7]
[422270593,1778776252000,-2586.85809042,0.00033099,7]
[422270584,1778776252000,-1865.36488657,0.00033099,7]
[422270591,1778776252000,-2405.55389864,0.00033099,7]
[422270592,1778776252000,-2494.55939289,0.00033099,7]
[422270587,1778776252000,-2080.17592889,0.00033099,7]
[422270589,1778776252000,-2236.95670848,0.00033099,7]
[422270576,1778776252000,-2686.98398688,0.00032984,7]
[422270621,1778776252000,-200.0,0.00033571,30]
[422270640,1778776252000,-200.0,0.00033571,30]
[422270632,1778776252000,-170.78035516,0.00033571,30]
[422270650,1778776252000,-200.0,0.00033571,30]
[422270654,1778776252000,-500.0,0.00033571,30]
[422270644,1778776252000,-152.0,0.00033571,30]
[422270652,1778776252000,-152.0,0.00033571,30]
[422270657,1778776252000,-500.0,0.00033571,30]
[422270667,1778776252000,-151.0,0.00033571,30]
[422270659,1778776252000,-342.77060003,0.00033571,30]
[422270668,1778776252000,-151.0,0.00033571,30]
[422270660,1778776252000,-500.0,0.00033571,30]
[422270656,1778776252000,-200.0,0.00033571,30]
[422270658,1778776252000,-151.0,0.00033571,30]
[422270649,1778776252000,-152.0,0.00033571,30]
[422270662,1778776252000,-500.0,0.00033571,30]
[422270665,1778776252000,-151.0,0.00033571,30]
[422270666,1778776252000,-168.4661141,0.00033571,30]
[422270664,1778776252000,-151.0,0.00033571,30]
[422270669,1778776252000,-151.0,0.00033571,30]
[422270670,1778776252000,-156.587,0.00033571,30]
[422270671,1778776252000,-151.0,0.00033571,30]
[422270674,1778776252000,-151.0,0.00033571,30]
[422270673,1778776252000,-151.0,0.00033571,30]
[422270672,1778776252000,-156.587,0.00033571,30]
[422270676,1778776252000,-200.0,0.00033576,30]
[422270631,1778776252000,-151.0,0.00033571,30]
[422270663,1778776252000,-151.0,0.00033571,30]
[422270655,1778776252000,-151.0,0.00033571,30]
[422270661,1778776252000,-151.0,0.00033571,30]
[422270646,1778776252000,-156.587,0.00033571,30]
[422270648,1778776252000,-500.0,0.00033571,30]
[422270622,1778776252000,-277.09000975,0.00033571,30]
[422270627,1778776252000,-500.0,0.00033571,30]
[422270625,1778776252000,-539.24,0.00033571,30]
[422270629,1778776252000,-559.19188,0.00033571,30]
[422270623,1778776252000,-7142.856,0.00033571,30]
[422270624,1778776252000,-1068.11,0.00033571,30]
[422270626,1778776252000,-151.0,0.00033571,30]
[422270630,1778776252000,-1118.34366344,0.00033571,30]
[422270634,1778776252000,-620.0,0.00033571,30]
[422270633,1778776252000,-151.0,0.00033571,30]
[422270638,1778776252000,-151.0,0.00033571,30]
[422270628,1778776252000,-1107.63007,0.00033571,30]
[422270645,1778776252000,-200.0,0.00033571,30]
[422270639,1778776252000,-500.0,0.00033571,30]
[422270651,1778776252000,-151.0,0.00033571,30]
[422270653,1778776252000,-200.0,0.00033571,30]
[422270647,1778776252000,-151.0,0.00033571,30]
[422270641,1778776252000,-151.0,0.00033571,30]
[422270642,1778776252000,-151.0,0.00033571,30]
[422270643,1778776252000,-500.0,0.00033571,30]
[422270637,1778776252000,-642.94,0.00033571,30]
[422270635,1778776252000,-151.0,0.00033571,30]
[422270636,1778776252000,-500.0,0.00033571,30]
[422270675,1778776252000,-620.96653947,0.00033571,30]
[422270688,1778776253000,-1798.80895522,0.00033738,30]
[422270696,1778776253000,-40768.0,0.00033887,30]
[422270689,1778776253000,-150.0,0.00033738,2]
[422270694,1778776253000,-500.0,0.00033808,2]
[422270695,1778776253000,-150.0,0.00033863,7]
[422270697,1778776253000,-512.0,0.00033945,11]
[422270700,1778776253000,-208.3309892,0.00034,30]
[422270702,1778776253000,-2492.31,0.00034,30]
[422270699,1778776253000,-1734.62772924,0.00033995,30]
[422270701,1778776253000,-750.0,0.00034,2]
[422270687,1778776253000,-150.0,0.00033733,7]
[422270698,1778776253000,-350.0,0.00033973,5]
[422270684,1778776253000,-159.0,0.00033716,30]
[422270680,1778776253000,-243.84,0.00033623,31]
[422270690,1778776253000,-207.14623106,0.00033738,2]
[422270693,1778776253000,-214.518505,0.000338,10]
[422270691,1778776253000,-23520.01552676,0.00033739,30]
[422270683,1778776253000,-224.0,0.00033716,30]
[422270686,1778776253000,-1907.0,0.00033716,30]
[422270681,1778776253000,-200.0,0.000337,10]
[422270692,1778776253000,-43072.0,0.00033755,30]
[422270682,1778776253000,-631.0,0.00033716,30]
[422270679,1778776253000,-150.0,0.00033603,7]
[422270677,1778776253000,-2698.0,0.00033576,30]
[422270678,1778776253000,-3629.0,0.00033576,30]
[422270703,1778776253000,-214.95940296,0.00034,30]
[422270685,1778776253000,-370.0,0.00033716,30]
[422270706,1778776253000,-500.0,0.00034023,30]
[422270704,1778776253000,-500.0,0.00034023,30]
[422270705,1778776253000,-500.0,0.00034023,30]
[422270710,1778776253000,-1206.67,0.000341,30]
[422270732,1778776253000,-167.15,0.00022,2]
[422270734,1778776253000,-34308.68369373,0.0003451,30]
[422270733,1778776253000,-279.77570619,0.000307,2]
[422270731,1778776253000,-8763.31630627,0.0003451,30]
[422270728,1778776253000,-314.0,0.000345,2]
[422270729,1778776253000,-200.0,0.000345,2]
[422270727,1778776253000,-40768.0,0.00034478,30]
[422270730,1778776253000,-512.0,0.00034507,12]
[422270724,1778776253000,-2037.22,0.000343,14]
[422270726,1778776253000,-500.0,0.00034438,28]
[422270725,1778776253000,-40768.0,0.0003433,30]
[422270722,1778776253000,-500.0,0.00034297,30]
[422270723,1778776253000,-500.0,0.00034297,30]
[422270735,1778776253000,-794.69,0.00034521,120]
[422270718,1778776253000,-158.07818558,0.00034258,116]
[422270708,1778776253000,-840.228,0.00034023,30]
[422270709,1778776253000,-40768.0,0.00034035,30]
[422270711,1778776253000,-501.07,0.00034132,120]
[422270707,1778776253000,-500.0,0.00034023,30]
[422270721,1778776253000,-500.0,0.00034297,30]
[422270715,1778776253000,-1558.1,0.00034182,7]
[422270712,1778776253000,-353.56306228,0.00034132,120]
[422270714,1778776253000,-2311.0,0.00034142,11]
[422270720,1778776253000,-500.0,0.00034297,30]
[422270717,1778776253000,-1000.0,0.00034247,120]
[422270719,1778776253000,-150.0,0.00034267,2]
[422270713,1778776253000,-40768.0,0.00034133,30]
[422270716,1778776253000,-40768.0,0.00034183,30]
[422270784,1778776254000,-43072.0,0.00035264,30]
[422270774,1778776254000,-40768.0,0.0003507,30]
[422270765,1778776254000,-170.9971936,0.00034976,3]
[422270768,1778776254000,-208.3309892,0.00035,120]
[422270770,1778776254000,-196.86820568,0.00035,30]
[422270767,1778776254000,-10000.193225,0.00035,10]
[422270772,1778776254000,-14997.0,0.00035,2]
[422270764,1778776254000,-500.0,0.0003497,3]
[422270766,1778776254000,-183.9887744,0.00034976,3]
[422270773,1778776254000,-512.0,0.00035068,13]
[422270771,1778776254000,-44748.11385867,0.00035,2]
[422270777,1778776254000,-1500.0,0.000352,7]
[422270782,1778776254000,-200.0,0.00035229,2]
[422270775,1778776254000,-2037.22,0.000351,14]
[422270776,1778776254000,-1206.67,0.000352,30]
[422270778,1778776254000,-40768.0,0.00035217,30]
[422270779,1778776254000,-200.0,0.00035229,2]
[422270781,1778776254000,-200.0,0.00035229,2]
[422270783,1778776254000,-200.0,0.00035229,2]
[422270780,1778776254000,-200.0,0.00035229,2]
[422270785,1778776254000,-40768.0,0.00035267,30]
[422270788,1778776254000,-7452.0,0.0003538,2]
[422270790,1778776254000,-500.0,0.00035471,30]
[422270787,1778776254000,-40768.0,0.00035365,30]
[422270769,1778776254000,-208.3309892,0.00035,30]
[422270789,1778776254000,-8393.88,0.00035383,30]
[422270763,1778776254000,-500.0,0.0003497,3]
[422270743,1778776254000,-40768.0,0.00034626,30]
[422270759,1778776254000,-350.0,0.00034931,5]
[422270786,1778776254000,-243.59855272,0.00035303,120]
[422270737,1778776254000,-172.0,0.00034521,30]
[422270738,1778776254000,-155.0,0.00034562,30]
[422270736,1778776254000,-151.0,0.00034521,30]
[422270750,1778776254000,-1907.0,0.00034716,30]
[422270740,1778776254000,-200.0,0.00034576,30]
[422270739,1778776254000,-258.0,0.0003457,30]
[422270748,1778776254000,-159.0,0.00034716,30]
[422270741,1778776254000,-2698.0,0.00034576,30]
[422270745,1778776254000,-503.0,0.00034643,5]
[422270742,1778776254000,-3629.0,0.00034576,30]
[422270746,1778776254000,-631.0,0.00034716,30]
[422270749,1778776254000,-370.0,0.00034716,30]
[422270744,1778776254000,-506.0,0.00034643,5]
[422270747,1778776254000,-224.0,0.00034716,30]
[422270752,1778776254000,-150.0,0.00034781,2]
[422270751,1778776254000,-40768.0,0.00034774,30]
[422270753,1778776254000,-152.0,0.00034788,5]
[422270761,1778776254000,-926.0,0.00034958,2]
[422270755,1778776254000,-7755.0,0.00034887,30]
[422270760,1778776254000,-1223.0,0.00034958,2]
[422270758,1778776254000,-40768.0,0.00034922,30]
[422270756,1778776254000,-2492.31,0.000349,30]
[422270754,1778776254000,-1500.0,0.00034795,2]
[422270757,1778776254000,-502.86,0.00034914,30]
[422270762,1778776254000,-3542.0,0.00034958,2]
[422270793,1778776254000,-258.0,0.0003557,30]
[422270822,1778776254000,-188.0,0.00036147,2]
[422270794,1778776254000,-200.0,0.00035576,30]
[422270819,1778776254000,-794.2,0.00036103,7]
[422270826,1778776254000,-7900.96028016,0.00036162,5]
[422270827,1778776254000,-417.0,0.00036165,2]
[422270829,1778776254000,-417.0,0.00036185,2]
[422270828,1778776254000,-417.0,0.00036165,2]
[422270825,1778776254000,-417.0,0.00036158,2]
[422270830,1778776254000,-512.0,0.00036192,14]
[422270831,1778776254000,-417.0,0.00036198,2]
[422270835,1778776254000,-417.0,0.00036244,2]
[422270833,1778776254000,-417.0,0.00036211,2]
[422270841,1778776254000,-1803.52033484,0.000363,2]
[422270836,1778776254000,-417.0,0.00036245,2]
[422270832,1778776254000,-157.0,0.00036198,3]
[422270842,1778776254000,-417.0,0.00036301,2]
[422270834,1778776254000,-417.0,0.0003622,2]
[422270837,1778776254000,-172.0,0.00036247,30]
[422270838,1778776254000,-40768.0,0.00036252,30]
[422270839,1778776254000,-417.0,0.0003627,2]
[422270843,1778776254000,-1260.92,0.00036338,2]
[422270840,1778776254000,-1206.67,0.000363,30]
[422270845,1778776254000,-417.0,0.00036392,2]
[422270844,1778776254000,-417.0,0.00036382,2]
[422270846,1778776254000,-417.0,0.00036394,2]
[422270792,1778776254000,-155.0,0.00035562,30]
[422270848,1778776254000,-236517.0,0.000364,30]
[422270823,1778776254000,-1558.1,0.00036153,30]
[422270824,1778776254000,-4592.49652544,0.00036155,5]
[422270847,1778776254000,-1613.0535,0.00036399,30]
[422270821,1778776254000,-417.0,0.00036129,2]
[422270795,1778776254000,-2698.0,0.00035576,30]
[422270796,1778776254000,-3629.0,0.00035576,30]
[422270797,1778776254000,-852.26,0.00035616,2]
[422270798,1778776254000,-220.32932231,0.00035616,2]
[422270802,1778776254000,-308.0,0.000357,2]
[422270803,1778776254000,-1000.0,0.000357,2]
[422270805,1778776254000,-224.0,0.00035716,30]
[422270799,1778776254000,-512.0,0.0003563,13]
[422270806,1778776254000,-159.0,0.00035716,30]
[422270801,1778776254000,-40768.0,0.00035661,30]
[422270800,1778776254000,-207.16887356,0.00035639,2]
[422270804,1778776254000,-631.0,0.00035716,30]